bitfinex-derivatives/quotes_BNBF0:USTF0_20250424
["timestamp","ask_amount","ask_price","bid_price","bid_amount"]
[1745499072214,0.27410469,598.3,597.02,0.62052105]
[1745499072410,0.27410469,598.3,597.03,0.62052105]
[1745499072615,0.27410469,598.3,597.0,0.732]
[1745499072815,0.27410044,598.29,597.01,0.62050063]
[1745499073015,0.29123776,598.31,597.02,0.62050063]
[1745499073211,0.27408738,598.3,597.03,0.62050063]
[1745499073410,0.29120486,598.3,597.04,0.62046656]
[1745499073614,0.27408738,598.29,597.0,0.732]
[1745499073811,0.27408738,598.29,597.01,0.62046489]
[1745499074017,0.27408738,598.29,597.02,0.62046489]
[1745499074212,0.29120486,598.3,597.03,0.62046489]
[1745499074412,0.27408897,598.29,597.0,0.732]
[1745499074616,0.27408897,598.29,597.01,0.62045076]
[1745499074816,0.27408897,598.29,597.02,0.62045076]
[1745499075016,0.27408897,598.29,597.03,0.62045076]
[1745499075316,0.27408897,598.29,597.0,0.732]
[1745499075510,0.27408897,598.29,597.01,0.62044257]
[1745499075715,0.27408897,598.29,597.02,0.62044257]
[1745499075910,0.27408897,598.29,597.0,0.732]
[1745499075911,0.27408657,598.28,597.0,0.732]
[1745499076116,0.27408657,598.29,597.01,0.6204366]
[1745499076317,0.27408657,598.28,597.02,0.6204366]
[1745499076512,0.29116831,598.28,597.0,0.732]
[1745499076718,0.27408657,598.27,597.01,0.62042805]
[1745499077012,0.27408657,598.27,597.02,0.62042805]
[1745499077218,0.27408657,598.27,597.0,0.732]
[1745499077412,0.29116831,598.28,597.01,0.62042581]
[1745499077614,0.27408421,598.27,597.02,0.62042581]
[1745499077811,0.27408421,598.27,597.0,0.732]
[1745499078013,0.27408421,598.27,597.01,0.62041399]
[1745499078211,0.27408421,598.27,597.02,0.62041399]
[1745499078415,0.27408421,598.27,597.03,0.62041399]
[1745499078614,0.27408421,598.27,597.0,0.732]
[1745499078814,0.27408421,598.27,597.01,0.6203904]
[1745499079012,0.29116831,598.28,597.0,0.732]
[1745499079217,0.27402919,598.27,597.01,0.62039354]
[1745499079420,0.27402919,598.27,597.02,0.62037229]
[1745499079615,0.27402919,598.27,597.0,0.732]
[1745499079813,0.27402919,598.27,597.01,0.62037229]
[1745499080118,0.27402919,598.27,597.02,0.62037229]
[1745499080417,0.27402919,598.27,597.0,0.732]
[1745499080612,0.27402672,598.26,597.01,0.62034945]
[1745499080812,0.27402672,598.26,597.02,0.62034945]
[1745499081015,0.27402672,598.27,597.0,0.732]
[1745499081216,0.27402672,598.26,597.01,0.62034945]
[1745499081412,0.27402672,598.27,597.0,0.732]
[1745499081618,0.27402672,598.26,597.01,0.62033233]
[1745499081818,0.27402672,598.25,597.0,0.732]
[1745499082018,0.27402672,598.25,597.01,0.62033271]
[1745499082214,0.27402672,598.24,597.0,0.732]
[1745499082519,0.27402672,598.23,597.01,0.62032024]
[1745499082717,0.27402672,598.3,597.02,0.62032024]
[1745499082914,0.27402672,598.29,597.0,0.732]
[1745499083219,0.27402672,598.28,597.01,0.6203055]
[1745499083416,0.27402672,598.3,597.02,0.6203055]
[1745499083620,0.27402672,598.29,597.0,0.732]
[1745499083815,0.27402672,598.3,597.01,0.62028385]
[1745499084021,0.27402672,598.3,597.0,0.732]
[1745499084022,0.27402672,598.29,597.02,0.62028385]
[1745499084320,0.27402672,598.28,597.0,0.732]
[1745499084521,0.27402672,598.3,597.01,0.62027873]
[1745499084820,0.27402672,598.29,597.02,0.62027873]
[1745499085120,0.27402672,598.28,597.0,0.732]
[1745499085319,1.27887129,598.37,597.01,0.62026619]
[1745499085520,0.27402625,598.36,597.0,0.732]
[1745499085720,0.27402625,598.35,597.01,0.62024586]
[1745499085923,0.27402625,598.34,597.0,0.732]
[1745499086120,0.27402625,598.33,597.01,0.62024586]
[1745499086320,0.27402625,598.32,597.02,0.62024586]
[1745499086620,0.27402625,598.31,597.0,0.732]
[1745499086818,0.27402625,598.3,597.01,0.62022414]
[1745499087018,0.27402625,598.35,597.02,0.62022333]
[1745499087314,0.27402625,598.35,597.03,0.62022333]
[1745499087515,0.27402625,598.35,597.04,0.62022333]
[1745499087719,0.27402625,598.35,597.05,0.62022333]
[1745499087919,0.27402625,598.35,597.06,0.62022333]
[1745499088219,0.27402625,598.35,597.07,0.62022333]
[1745499088418,0.27402625,598.35,597.08,0.62022333]
[1745499088616,0.27402625,598.35,597.09,0.62022333]
[1745499088817,0.27402625,598.35,597.1,0.62022333]
[1745499089018,0.27402625,598.35,597.11,0.6201017]
[1745499089221,0.27402625,598.35,597.04,0.645]
[1745499089422,0.27402625,598.35,597.05,0.6200355]
[1745499089618,0.27402625,598.35,597.06,0.6200355]
[1745499089824,0.27402625,598.35,597.07,0.6200355]
[1745499090018,0.27402625,598.35,597.08,0.6200355]
[1745499090222,0.29119755,598.36,597.09,0.6200355]
[1745499090522,0.29119755,598.36,597.1,0.6200355]
[1745499090718,0.29119755,598.36,597.11,0.6200355]
[1745499090922,0.27404552,598.35,597.04,0.645]
[1745499091122,0.27404552,598.35,597.05,0.62010596]
[1745499091324,0.27404552,598.35,597.06,0.62010596]
[1745499091626,0.29106116,598.41,597.07,0.62010596]
[1745499091823,0.27404552,598.4,597.08,0.62010596]
[1745499092022,0.27404552,598.4,597.04,0.645]
[1745499092222,0.27404552,598.4,597.05,0.62017499]
[1745499092420,0.27404552,598.4,597.06,0.62017499]
[1745499092620,0.27404552,598.4,597.07,0.62017499]
[1745499092823,0.27404552,598.4,597.08,0.62017499]
[1745499093124,0.27404552,598.4,597.09,0.62017499]
[1745499093319,0.27404552,598.4,597.04,0.645]
[1745499093518,0.27404552,598.4,597.05,0.62032753]
[1745499093718,0.27404552,598.4,597.06,0.62032753]
[1745499093918,0.27404552,598.4,597.07,0.62032753]
[1745499094119,0.27404552,598.4,597.08,0.62032753]
[1745499094322,0.27404552,598.4,597.04,0.645]
[1745499094521,0.29106603,598.39,597.05,0.62031724]
[1745499094723,0.56511155,598.39,597.06,0.62031724]
[1745499094922,0.27403263,598.38,597.07,0.62031724]
[1745499095124,0.27403263,598.38,597.05,0.762]
[1745499095322,0.27403263,598.38,597.06,0.6203705]
[1745499095629,0.27403263,598.38,597.05,0.762]
[1745499095827,0.27403263,598.38,597.06,0.6204126]
[1745499096028,0.27403263,598.38,597.05,0.762]
[1745499097426,0.27403263,598.37,597.05,0.762]
[1745499097731,0.29115857,598.37,597.05,0.762]
[1745499098126,0.27398744,598.36,597.05,0.762]
[1745499099432,0.27398744,598.35,597.05,0.762]
[1745499099632,0.27398744,598.34,597.05,1.378]
[1745499099836,0.27398744,598.33,597.05,1.378]
[1745499100031,0.27398744,598.32,597.05,1.378]
[1745499100235,0.27398744,598.31,597.05,1.378]
[1745499100430,0.27398744,598.3,597.05,1.378]
[1745499100630,0.27398744,598.29,597.05,1.378]
[1745499100934,0.27398744,598.28,597.05,1.378]
[1745499101237,0.27398379,598.27,597.05,1.378]
[1745499101436,0.27398379,598.26,597.05,1.378]
[1745499101636,0.27398379,598.25,597.05,1.378]
[1745499101932,0.27398379,598.24,597.05,1.378]
[1745499102237,0.27398379,598.23,597.05,2.079]
[1745499102438,0.27398379,598.28,597.05,2.079]
[1745499102733,0.27398977,598.27,597.05,2.079]
[1745499102936,0.27398977,598.26,597.05,2.079]
[1745499103237,0.27398977,598.25,597.05,2.079]
[1745499103437,0.27398977,598.24,597.05,2.079]
[1745499103634,0.29121948,598.24,597.05,2.079]
[1745499103834,0.27398977,598.23,597.05,2.079]
[1745499104238,0.29121948,598.24,597.05,2.079]
[1745499104435,0.27396737,598.23,597.05,2.079]
[1745499105839,0.2739415,598.22,597.05,2.079]
[1745499106035,0.2739415,598.21,597.05,2.079]
[1745499106240,0.2739415,598.2,597.05,2.079]
[1745499106439,0.2739415,598.27,597.05,2.079]
[1745499106639,0.29124507,598.2,597.05,2.079]
[1745499106939,0.2739415,598.19,597.05,2.079]
[1745499107140,0.2739415,598.27,597.05,2.079]
[1745499107340,1.27887129,598.43,597.05,2.079]
[1745499107638,0.29122679,598.26,597.05,2.079]
[1745499107840,0.27395145,598.25,597.05,2.079]
[1745499108039,0.27395145,598.42,597.05,2.079]
[1745499108240,0.29122679,598.25,597.05,2.079]
[1745499108443,0.27395145,598.24,597.05,2.079]
[1745499108646,0.29122679,598.24,597.05,2.079]
[1745499108847,0.27395145,598.23,597.05,2.079]
[1745499109248,0.27395145,598.22,597.05,2.079]
[1745499109448,0.27395145,598.21,597.05,2.079]
[1745499109747,0.27395145,598.2,597.05,2.079]
[1745499109949,0.27395145,598.19,597.05,2.079]
[1745499110146,0.27395145,598.18,597.05,2.079]
[1745499110343,0.27395145,598.17,597.05,2.079]
[1745499110543,0.27395145,598.16,597.05,2.079]
[1745499110850,0.27395145,598.15,597.05,2.079]
[1745499111049,0.27395145,598.21,597.05,2.079]
[1745499111247,0.27395145,598.2,597.05,2.079]
[1745499111445,0.27395145,598.19,597.05,2.079]
[1745499111645,0.27395145,598.18,597.05,2.079]
[1745499111850,0.27395145,598.17,597.05,2.079]
[1745499112050,0.29122436,598.22,597.05,2.079]
[1745499112251,0.27395501,598.21,597.05,2.079]
[1745499112550,0.27395501,598.2,597.05,2.079]
[1745499112752,0.29124751,598.2,597.05,2.079]
[1745499112952,0.27395501,598.19,597.05,2.079]
[1745499115250,0.2740908,598.18,597.05,2.079]
[1745499115450,0.2740908,598.33,597.05,2.079]
[1745499115648,0.29124873,598.18,597.05,2.079]
[1745499115848,1.27887129,598.34,597.05,2.079]
[1745499116053,0.27409387,598.33,597.05,2.079]
[1745499116254,0.27409387,598.32,597.05,2.079]
[1745499116450,0.27409387,598.31,597.05,2.079]
[1745499116751,0.27409387,598.3,597.05,2.079]
[1745499116951,0.27409387,598.29,597.05,2.079]
[1745499117155,0.27409387,598.28,597.05,2.079]
[1745499117355,0.27409387,598.27,597.05,2.079]
[1745499117654,0.27409387,598.26,597.05,2.079]
[1745499117859,0.27409387,598.25,597.05,2.079]
[1745499118056,0.27409387,598.24,597.05,2.974]
[1745499118257,0.27409387,598.23,597.05,2.974]
[1745499118456,0.27409387,598.22,597.05,2.974]
[1745499118751,0.27409387,598.21,597.05,2.974]
[1745499118956,0.27409387,598.22,597.05,2.974]
[1745499120458,0.27409387,598.21,597.05,2.974]
[1745499120857,0.27409387,598.2,597.05,2.974]
[1745499121153,0.27409387,598.22,597.05,2.974]
[1745499121359,0.27409387,598.21,597.05,2.974]
[1745499121559,0.27409387,598.37,597.05,2.974]
[1745499121762,0.29123776,598.21,597.05,2.974]
[1745499121956,0.27409387,598.2,597.05,2.974]
[1745499122355,0.27409387,598.19,597.05,2.974]
[1745499122558,0.27409387,598.18,597.05,2.974]
[1745499122762,0.27409387,598.17,597.05,2.974]
[1745499122957,0.27409387,598.16,597.05,2.974]
[1745499123162,0.27409387,598.37,597.05,2.974]
[1745499123461,0.27409387,598.36,597.05,2.974]
[1745499123662,0.27409387,598.35,597.05,2.974]
[1745499123863,0.27409387,598.34,597.05,2.974]
[1745499124163,0.27412242,598.33,597.05,2.974]
[1745499124356,0.27412242,598.32,597.05,2.974]
[1745499124562,0.27412242,598.31,597.05,2.974]
[1745499124863,0.27412242,598.3,597.05,2.974]
[1745499125065,0.27412242,598.29,597.05,2.974]
[1745499125265,0.27412242,598.28,597.05,2.974]
[1745499125465,0.27412242,598.27,597.05,2.974]
[1745499125666,0.27411552,598.26,597.05,2.974]
[1745499125865,0.27411552,598.32,597.05,2.974]
[1745499126060,0.27411552,598.31,597.05,2.974]
[1745499126266,0.27411552,598.3,597.05,2.974]
[1745499126467,0.27411552,598.29,597.05,2.974]
[1745499126667,0.27411552,598.28,597.05,2.974]
[1745499126869,0.27411552,598.27,597.05,2.974]
[1745499127068,0.27411552,598.26,597.05,2.974]
[1745499127367,0.27413105,598.25,597.05,2.974]
[1745499127568,0.27413105,598.24,597.05,2.974]
[1745499130268,1.27887129,598.34,597.05,2.974]
[1745499130465,0.27411222,598.33,597.05,2.974]
[1745499130670,0.29124507,598.23,597.05,2.974]
[1745499130870,0.27411222,598.22,597.05,2.974]
[1745499131170,0.27411222,598.21,597.05,2.974]
[1745499131365,0.27411222,598.33,597.05,2.974]
[1745499131571,0.27411222,598.32,597.05,2.974]
[1745499131765,0.56535729,598.32,597.05,2.974]
[1745499131969,0.27411222,598.31,597.05,2.974]
[1745499133370,0.27411222,598.33,597.05,2.974]
[1745499133566,0.29123776,598.3,597.05,2.974]
[1745499133771,0.27411222,598.29,597.05,2.974]
[1745499134971,0.29123776,598.3,597.05,2.974]
[1745499135171,0.27414765,598.29,597.05,2.974]
[1745499136467,0.29123776,598.28,597.05,2.974]
[1745499136672,0.27421612,598.27,597.05,2.974]
[1745499139369,0.27421612,599.0,597.05,2.974]
[1745499139575,1.27887129,599.01,597.05,2.974]
[1745499139773,0.29115613,598.26,597.05,2.974]
[1745499139971,0.27429823,598.25,597.05,2.974]
[1745499140172,0.27429823,598.99,597.05,2.974]
[1745499140374,0.27429823,598.98,597.05,2.974]
[1745499140569,0.27429823,598.97,597.05,2.974]
[1745499140770,0.27429823,598.96,597.05,2.974]
[1745499140973,0.27429823,598.95,597.05,2.974]
[1745499141171,0.29115735,598.98,597.05,2.974]
[1745499141475,0.27429974,598.97,597.05,2.974]
[1745499141676,0.27429974,598.96,597.05,2.974]
[1745499141874,0.27429974,598.95,597.05,2.974]
[1745499142072,0.27429974,598.94,597.05,2.974]
[1745499142270,0.27429974,598.93,597.05,2.974]
[1745499142473,0.27429974,598.92,597.05,2.974]
[1745499142675,0.27429974,598.91,597.05,2.974]
[1745499142976,0.27429974,598.9,597.05,2.974]
[1745499143175,0.27429974,598.89,597.05,2.974]
[1745499143371,0.27429974,598.88,597.05,2.974]
[1745499143670,0.27429974,598.87,597.05,2.974]
[1745499143876,0.27429974,598.86,597.05,2.974]
[1745499144075,0.27429974,598.85,597.05,2.974]
[1745499144271,0.29115735,598.93,597.05,2.974]
[1745499144473,0.27420353,598.92,597.05,2.974]
[1745499144776,0.29115735,598.93,597.05,2.974]
[1745499145077,0.2742065,598.92,597.05,2.974]
[1745499145577,0.56536629,598.91,597.05,2.974]
[1745499145873,0.29115979,598.91,597.05,2.974]
[1745499146078,1.27887129,598.18,597.05,2.974]
[1745499146277,0.27420719,598.17,597.05,2.974]
[1745499148380,1.27887129,598.15,597.05,2.974]
[1745499148679,0.27420719,598.14,597.05,2.974]
[1745499149281,1.27887129,598.15,597.05,2.974]
[1745499149881,0.27419177,598.14,597.05,2.974]
[1745499153879,1.27887129,598.15,597.05,2.974]
[1745499154087,0.27422416,598.14,597.05,2.974]
[1745499154285,0.27422416,598.17,597.05,2.974]
[1745499154585,0.27422416,598.16,597.05,2.974]
[1745499154787,0.27422416,598.17,597.05,2.974]
[1745499154987,0.27422416,598.16,597.05,2.974]
[1745499155187,0.27422416,598.17,597.05,2.974]
[1745499156585,0.29122801,598.23,597.05,2.974]
[1745499156791,0.27422416,598.22,597.05,2.974]
[1745499157386,0.27422416,598.39,597.05,2.974]
[1745499157593,0.27422416,598.38,597.05,2.974]
[1745499157892,0.27422416,598.37,597.05,2.974]
[1745499158089,0.27422416,598.39,597.05,2.974]
[1745499158493,0.29118902,598.38,597.05,2.974]
[1745499158890,0.2741804,598.37,597.05,2.974]
[1745499160396,0.2741804,598.44,597.05,2.974]
[1745499160596,0.29118293,598.36,597.05,2.974]
[1745499160793,0.2741804,598.35,597.05,2.974]
[1745499160996,0.2741804,598.34,597.05,2.974]
[1745499161197,0.2741804,598.33,597.05,2.974]
[1745499161493,0.2741804,598.32,597.05,2.974]
[1745499161696,0.2741804,598.31,597.05,2.974]
[1745499161891,0.2741804,598.3,597.06,0.62059536]
[1745499162096,0.2741804,598.29,597.05,2.974]
[1745499162293,0.2741804,598.29,596.94,0.29118293]
[1745499162596,0.2741804,598.28,596.95,0.92815662]
[1745499162892,0.2741804,598.27,596.96,0.30754501]
[1745499163098,0.2741804,598.29,596.96,0.30754501]
[1745499163296,0.2741804,598.28,596.97,0.62061169]
[1745499163493,0.29118415,598.28,596.98,0.30754501]
[1745499163700,0.2741804,598.27,596.98,0.9281567]
[1745499163893,0.2741804,598.27,596.98,0.30754501]
[1745499164095,0.2741804,598.27,596.99,0.30754501]
[1745499164295,0.2741804,598.27,597.0,0.62061035]
[1745499164496,0.2741804,598.27,597.01,0.92815536]
[1745499164697,0.2741804,598.27,597.02,0.92815536]
[1745499164900,0.2741804,598.27,597.03,0.92815536]
[1745499165095,0.2741804,598.27,597.04,0.62061035]
[1745499165294,0.2741804,598.27,597.05,0.62061035]
[1745499165493,0.2741804,598.35,597.06,0.62061035]
[1745499165694,0.2741804,598.34,597.07,0.62061035]
[1745499165993,0.2741804,598.34,597.08,0.62061035]
[1745499166199,0.2741804,598.34,597.06,1.804]
[1745499166200,0.2741804,598.34,597.09,0.62061035]
[1745499166400,0.2741804,598.34,597.1,0.62061035]
[1745499166600,0.2741804,598.33,597.06,1.804]
[1745499166794,0.2741804,598.34,597.07,0.62005416]
[1745499166994,0.2741804,598.33,597.08,0.62005416]
[1745499167299,0.2741804,598.32,597.09,0.62005416]
[1745499167496,0.2741804,598.34,597.06,1.804]
[1745499167695,0.2741804,598.33,597.07,0.61991947]
[1745499167900,0.2741804,598.34,597.08,0.61991947]
[1745499168101,0.2741804,598.32,597.09,0.61991947]
[1745499168403,0.2741804,598.31,597.06,1.804]
[1745499168702,0.2741804,598.3,597.07,0.61977588]
[1745499168900,0.2741804,598.34,597.08,0.61977588]
[1745499169104,0.2741804,598.33,597.09,0.61977588]
[1745499169303,0.2741804,598.34,597.1,0.61977588]
[1745499169606,0.2741804,598.33,597.06,1.804]
[1745499169899,0.2741804,598.32,597.07,0.6196416]
[1745499170199,0.2741804,598.31,597.08,0.61964227]
[1745499170403,0.2741804,598.34,597.06,1.804]
[1745499170701,0.2741804,598.34,597.07,0.61952128]
[1745499170904,0.2741804,598.34,597.06,1.804]
[1745499171106,0.2741804,598.34,597.07,0.61952158]
[1745499171302,0.27449386,598.33,597.06,1.804]
[1745499171502,0.27449386,598.34,597.07,0.61942163]
[1745499171703,0.27449386,598.33,597.06,1.804]
[1745499171900,0.27449386,598.34,597.06,1.804]
[1745499172101,0.27449386,598.33,597.06,1.804]
[1745499172308,0.27449386,598.33,597.07,0.61941821]
[1745499172507,0.27449386,598.32,597.06,1.804]
[1745499172708,0.29113056,598.35,597.07,0.61932105]
[1745499173008,0.27449386,598.34,597.06,1.804]
[1745499175509,0.27449386,598.33,597.06,1.804]
[1745499175710,0.27449386,598.34,597.06,1.804]
[1745499176010,0.2911269,598.35,597.06,1.804]
[1745499176205,0.27460402,598.33,597.06,1.804]
[1745499176510,0.27460402,598.32,597.06,1.804]
[1745499176710,0.27460402,598.34,597.06,1.804]
[1745499177509,0.27460402,598.34,597.07,0.61862654]
[1745499177705,0.27460402,598.34,597.08,0.61862654]
[1745499177905,0.27460402,598.34,597.06,0.865]
[1745499178106,0.27460402,598.34,597.07,0.61863145]
[1745499178410,0.27460402,598.34,597.08,0.61863145]
[1745499178610,0.29112447,598.35,597.06,0.865]
[1745499178812,0.27460402,598.33,597.07,0.92610059]
[1745499179110,0.27460402,598.32,597.08,0.61856153]
[1745499179311,0.27460402,598.34,597.06,0.865]
[1745499179513,0.27460402,598.33,597.07,0.92603786]
[1745499179713,0.27460402,598.32,597.08,0.61853878]
[1745499179913,0.27460402,598.34,597.06,0.865]
[1745499180209,0.27460402,598.33,597.07,0.92604858]
[1745499180412,0.27460402,598.33,597.06,2.438]
[1745499180413,0.27460402,598.34,597.08,0.61854921]
[1745499180613,0.27460215,598.33,597.06,2.438]
[1745499180807,0.27460215,598.34,597.07,0.61853226]
[1745499181011,0.27460215,598.32,597.08,0.61853226]
[1745499181211,0.27460215,598.31,597.06,2.438]
[1745499181412,0.27460215,598.34,597.07,0.61855882]
[1745499181612,0.27460215,598.3,597.08,0.61855882]
[1745499181809,0.27460215,598.29,597.09,0.61848976]
[1745499182016,0.27460215,598.34,597.1,0.61848976]
[1745499182215,0.27460215,598.33,597.06,2.438]
[1745499182417,0.27460215,598.34,597.07,0.92590605]
[1745499182716,0.27460215,598.33,597.08,0.6184175]
[1745499182910,0.27460215,598.34,597.09,0.6184175]
[1745499183113,0.27460215,598.33,597.1,0.6184175]
[1745499183409,0.27460215,598.32,597.06,2.438]
[1745499183614,0.29113299,598.41,597.07,0.92593906]
[1745499183811,0.27460215,598.4,597.08,0.92593906]
[1745499184015,0.27460215,598.4,597.09,0.61845411]
[1745499184216,0.27460215,598.4,597.1,0.61845411]
[1745499184416,0.27460215,598.4,597.11,0.61845411]
[1745499184617,0.27460215,598.6,597.12,0.61845411]
[1745499184912,0.2911062,598.49,597.13,0.61845411]
[1745499185110,0.27460215,598.48,597.14,0.61845411]
[1745499185309,0.27460215,598.47,597.15,0.61845411]
[1745499185514,0.27460215,598.58,597.16,0.61845411]
[1745499185710,0.27460215,598.57,597.06,2.438]
[1745499185912,0.27460215,598.58,597.07,0.92544666]
[1745499186216,0.27460215,598.57,597.08,0.92544666]
[1745499186417,0.27460215,598.58,597.09,0.92544666]
[1745499186614,0.27460215,598.57,597.1,0.92544666]
[1745499186811,0.27460215,598.58,597.11,0.92544666]
[1745499187012,0.27460215,598.57,597.12,0.92544666]
[1745499187213,0.27460215,598.58,597.13,0.92544666]
[1745499187517,0.29107942,598.56,597.14,0.61800106]
[1745499187718,0.27460215,598.55,597.15,0.61800106]
[1745499187913,0.27454883,598.54,597.08,0.29107942]
[1745499188216,0.29107942,598.56,597.09,0.92526307]
[1745499188217,0.27454883,598.53,597.09,0.92526307]
[1745499188416,0.27454883,598.55,597.1,0.92526307]
[1745499188618,0.27454883,598.54,597.11,0.92526307]
[1745499188811,0.27454883,598.55,597.12,0.92526307]
[1745499189015,0.27454883,598.54,597.13,0.92526307]
[1745499189317,0.27454883,598.53,597.08,0.29107942]
[1745499189520,0.27454883,598.55,597.09,0.92496461]
[1745499189718,0.27454883,598.54,597.1,0.92496461]
[1745499189913,0.27454883,598.55,597.11,0.92496461]
[1745499190115,0.27454883,598.54,597.12,0.6175128]
[1745499190412,0.27454883,598.55,597.13,1.4265128]
[1745499190617,0.29108916,598.53,597.13,0.809]
[1745499190819,0.27454883,598.52,597.13,0.809]
[1745499191416,0.29108916,598.53,597.14,0.30745382]
[1745499191417,0.27454883,598.51,597.14,0.30745382]
[1745499191617,0.27454883,598.5,597.14,1.20545382]
[1745499191818,0.27454883,598.49,597.15,0.30745382]
[1745499192015,0.27454883,598.52,597.15,0.30745382]
[1745499192317,0.27454883,598.51,597.15,0.30745382]
[1745499192518,0.27454883,598.51,597.14,0.898]
[1745499192519,0.27454883,598.52,597.16,0.61727393]
[1745499192718,0.27454883,598.51,597.17,0.61727393]
[1745499193019,0.27454883,598.5,597.18,0.61727393]
[1745499193215,0.27454883,598.73,597.19,0.61727393]
[1745499193417,1.27887129,598.74,597.2,0.61727393]
[1745499193418,0.29105507,598.6,597.2,0.61727393]
[1745499193617,0.27454883,598.59,597.21,0.61727393]
[1745499193816,0.29105142,598.6,597.14,0.898]
[1745499194020,0.29105142,598.6,597.15,0.61678367]
[1745499194314,0.27448683,598.59,597.16,0.92416635]
[1745499194518,0.27448683,598.59,597.17,0.61678367]
[1745499194820,0.27448683,598.59,597.18,0.61678367]
[1745499195016,0.27448683,598.59,597.19,0.61678367]
[1745499195221,0.27448683,598.59,597.2,0.61678367]
[1745499195415,0.27448683,598.59,597.14,0.898]
[1745499195615,0.27448683,598.59,597.15,0.92389438]
[1745499195917,0.27448683,598.59,597.16,0.92389438]
[1745499196117,0.27448683,598.59,597.17,0.61650526]
[1745499196314,0.27448683,598.59,597.18,0.61650526]
[1745499196514,0.27448683,598.96,597.14,0.898]
[1745499196815,0.29102708,598.6,597.15,0.92385547]
[1745499197015,0.27448683,598.59,597.16,0.61645956]
[1745499197320,0.27449591,598.58,597.17,0.61645956]
[1745499197518,0.27449591,598.58,597.14,0.898]
[1745499197519,0.27449591,599.01,597.18,0.92385563]
[1745499197723,0.27449591,599.0,597.19,0.30739607]
[1745499197915,0.27449591,598.99,597.14,0.898]
[1745499198115,0.27449591,598.98,597.2,0.648]
[1745499198315,0.27449591,598.97,597.2,0.648]
[1745499198516,0.27449591,598.96,597.2,0.648]
[1745499198714,0.27449591,598.95,597.2,0.648]
[1745499198918,1.27887129,598.92,597.13,0.29102708]
[1745499199121,1.27887129,598.92,597.14,0.61625166]
[1745499199321,0.27449591,598.91,597.15,0.92364831]
[1745499199522,0.27449591,598.9,597.16,0.92364831]
[1745499199721,0.27449591,598.89,597.17,0.92364831]
[1745499199921,0.27449591,598.88,597.18,0.92364831]
[1745499200115,0.27449591,598.87,597.19,0.92364831]
[1745499200320,0.2910356,598.9,597.2,0.61625166]
[1745499200520,0.2744931,598.89,597.21,0.61625166]
[1745499200719,0.2744931,598.88,597.22,0.61605825]
[1745499200918,0.2744931,598.87,597.14,0.2910356]
[1745499201117,0.2744931,598.86,597.15,0.92343685]
[1745499201321,0.2744931,598.85,597.16,0.92343685]
[1745499201522,0.2744931,598.84,597.17,0.92343685]
[1745499201823,0.2910356,598.9,597.18,0.61605117]
[1745499202022,0.27449118,598.89,597.19,0.61605117]
[1745499202222,0.27449118,598.88,597.2,0.92343823]
[1745499202422,0.27449118,598.87,597.21,0.61605117]
[1745499202621,0.27449118,598.9,596.72,1.06343516]
[1745499202917,0.29103073,598.87,597.16,0.29103073]
[1745499203119,0.27449118,598.86,596.72,1.06343516]
[1745499203322,0.27449118,598.86,596.73,1.67964408]
[1745499203519,0.27452587,598.85,596.74,0.92363123]
[1745499203818,0.27452587,598.84,596.75,0.92363123]
[1745499204018,0.27452587,598.86,596.76,0.92363123]
[1745499204221,0.27452587,598.85,596.77,0.92363123]
[1745499204422,0.27452587,598.86,596.78,0.92363123]
[1745499204622,0.27452587,598.85,596.79,0.9237747]
[1745499204822,0.27452587,598.86,596.8,0.9237747]
[1745499205023,0.27452587,598.85,596.81,0.9237747]
[1745499205223,0.27452587,598.86,596.82,0.9237747]
[1745499205423,0.27452587,598.85,596.83,0.9237747]
[1745499205625,0.29109525,598.84,596.84,0.9237747]
[1745499205825,0.27452587,598.83,596.85,0.9237747]
[1745499206025,0.27452587,598.83,596.86,0.9237747]
[1745499206226,0.27452587,598.83,596.87,0.61635239]
[1745499206528,0.27453402,598.82,596.88,0.61635239]
[1745499206727,0.27453402,598.83,596.89,0.61635239]
[1745499207022,0.27453402,598.82,596.9,0.61635239]
[1745499207225,0.27453402,598.81,596.91,0.61635239]
[1745499207419,0.27453402,598.83,596.92,0.61635239]
[1745499207620,0.27453402,598.82,596.93,0.61635239]
[1745499207825,0.27453402,598.83,596.94,0.61635239]
[1745499208022,0.27453402,598.82,596.95,0.61635239]
[1745499208226,0.27453402,598.83,596.96,0.61635239]